[Event "Chinese Chess League 2019"]
[Site "Shen Yang"]
[Date "2019.11.23"]
[Round "18.26"]
[White "Malakhov, Vladimir"]
[Black "Xu, Yi"]
[Result "1-0"]
[ECO "A17"]
[WhiteElo "2665"]
[BlackElo "2541"]
[Annotator "ChessBase"]
[PlyCount "75"]
[EventDate "2019.04.09"]
[EventType "team-tourn"]
[EventCountry "CHN"]
[SourceTitle "playchess.com"]
[Source "ChessBase"]
[SourceQuality "1"]
[TimeControl "5400+30"]

1. Nf3 {[%emt 0:00:00]} d5 {[%emt 0:00:00]} 2. e3 {[%emt 0:00:00]} Nf6 {[%emt 0:00:00]} 3. c4 {[%emt 0:00:00]} e6 {[%emt 0:00:00]} 4. Nc3 {[%emt 0:00:00]} b6 {[%emt 0:00:01]} 5. b3 {[%emt 0:00:56]} Bb7 {[%emt 0:00:08]} 6. Bb2 {[%emt 0:00:04]} Nbd7 {[%emt 0:00:07]} 7. Rc1 {[%emt 0:00:23]} a6 {[%emt 0:00:17]} 8. cxd5 {[%emt 0:00:13]} exd5 {[%emt 0:00:06]} 9. d4 {[%emt 0:00:03]} Bd6 {[%emt 0:00:08]} 10. g3 {[%emt 0:00:05]} O-O {[%emt 0:00:08]} 11. Bg2 {[%emt 0:00:02]} Ne4 {[%emt 0:04:41]} 12. O-O {[%emt 0:00:37]} Qe7 {[%emt 0:04:12]} 13. Re1 {[%emt 0:18:08]} Rae8 {[%emt 0:15:15]} 14. Ne2 {[%emt 0:01:27]} a5 {[%emt 0:00:37]} 15. Nf4 {[%emt 0:09:16]} c6 {[%emt 0:03:37]} 16. Nd3 {[%emt 0:02:32]} f6 {[%emt 0:03:55]} 17. Re2 {[%emt 0:03:29]} Qf7 {[%emt 0:01:12]} 18. Rec2 {[%emt 0:03:00]} Rc8 {[%emt 0:09:30]} 19. Nd2 {[%emt 0:03:30]} Nxd2 {[%emt 0:00:10]} 20. Qxd2 {[%emt 0:09:18]} Rfe8 21. a4 {[%emt 0:09:50]} Rc7 22. Bc3 {[%emt 0:03:09]} Ba6 23. Bb2 {[%emt 0:06:01]} Nb8 {[%emt 0:06:39]} 24. Rd1 {[%emt 0:04:07]} Kh8 25. Bf1 {[%emt 0:00:08]} Qe7 26. Bc3 {[%emt 0:01:08]} Ra7 27. Rb1 {[%emt 0:06:42]} Rc8 28. b4 {[%emt 0:08:52]} axb4 {[%emt 0:37:08]} 29. Bxb4 {[%emt 0:00:00]} Nd7 30. Bxd6 {[%emt 0:05:55]} Qxd6 {[%emt 0:00:09]} 31. Bh3 {[%emt 0:00:00]} Bc4 32. Nb2 {[%emt 0:07:38]} b5 {[%emt 0:00:36]} 33. axb5 {[%emt 0:02:15]} cxb5 {[%emt 0:10:55]} 34. Nxc4 {[%emt 0:00:27]} bxc4 {[%emt 0:00:26]} 35. Qb4 {[%emt 0:00:00]} Qc7 {[%emt 0:01:23]} 36. Qe7 {[%emt 0:00:00]} Rd8 {[%emt 0:00:56]} 37. Rcb2 {[%emt 0:00:00]} h6 {[%emt 0:03:40]} 38. Rb7 {[%emt 0:00:00]} 1-0

[Event "Chinese Chess League 2019"]
[Site "Shen Yang"]
[Date "2019.11.23"]
[Round "18.29"]
[White "Ni, Shiqun"]
[Black "Munguntuul, Batkhuyag"]
[Result "1/2-1/2"]
[ECO "B22"]
[WhiteElo "2391"]
[BlackElo "2436"]
[Annotator "ChessBase"]
[PlyCount "82"]
[EventDate "2019.04.09"]
[EventType "team-tourn"]
[EventCountry "CHN"]
[SourceTitle "playchess.com"]
[Source "ChessBase"]
[SourceQuality "1"]
[TimeControl "5400+30"]

1. e4 {[%emt 0:00:00]} c5 {[%emt 0:00:00]} 2. Nf3 {[%emt 0:00:00]} e6 {[%emt 0:00:00]} 3. c3 {[%emt 0:00:00]} Nf6 {[%emt 0:00:00]} 4. e5 {[%emt 0:00:00]} Nd5 {[%emt 0:00:00]} 5. Bc4 {[%emt 0:00:01]} d6 {[%emt 0:00:18]} 6. d4 {[%emt 0:00:08]} cxd4 {[%emt 0:00:11]} 7. cxd4 {[%emt 0:00:04]} Nc6 {[%emt 0:01:43]} 8. O-O {[%emt 0:00:10]} Be7 {[%emt 0:00:09]} 9. Qe2 {[%emt 0:00:55]} O-O {[%emt 0:01:45]} 10. Nc3 {[%emt 0:00:30]} Nxc3 {[%emt 0:01:24]} 11. bxc3 {[%emt 0:00:02]} dxe5 {[%emt 0:01:20]} 12. dxe5 {[%emt 0:00:23]} b6 {[%emt 0:06:12]} 13. Qe4 {[%emt 0:02:13]} Qc7 {[%emt 0:12:15]} 14. Bg5 {[%emt 0:11:43]} Bb7 {[%emt 0:12:02]} 15. Bd3 {[%emt 0:00:19]} g6 {[%emt 0:00:13]} 16. Qh4 {[%emt 0:00:28]} Bxg5 {[%emt 0:14:04]} 17. Nxg5 {[%emt 0:00:13]} h5 {[%emt 0:00:12]} 18. Rae1 {[%emt 0:00:45]} Rfd8 {[%emt 0:20:57]} 19. Be4 {[%emt 0:00:30]} Ba6 {[%emt 0:02:07]} 20. c4 {[%emt 0:00:09]} Rac8 {[%emt 0:02:34]} 21. Bxc6 {[%emt 0:16:45]} Qxc6 {[%emt 0:00:07]} 22. Qf4 {[%emt 0:00:03]} Qc7 {[%emt 0:03:51]} 23. Ne4 {[%emt 0:05:25]} Bxc4 {[%emt 0:00:40]} 24. Rc1 {[%emt 0:02:05]} b5 {[%emt 0:00:06]} 25. Rfe1 {[%emt 0:06:35]} Rd3 {[%emt 0:02:56]} 26. a4 {[%emt 0:01:26]} a6 {[%emt 0:00:30]} 27. h4 {[%emt 0:02:23]} Rcd8 {[%emt 0:01:12]} 28. axb5 {[%emt 0:11:31]} axb5 {[%emt 0:00:05]} 29. g4 {[%emt 0:01:38]} hxg4 {[%emt 0:00:52]} 30. h5 {[%emt 0:01:17]} Rf3 {[%emt 0:04:49]} 31. Qxg4 {[%emt 0:05:18]} Rf5 {[%emt 0:00:33]} 32. hxg6 {[%emt 0:07:08]} Qxe5 {[%emt 0:06:02]} 33. Qh4 {[%emt 0:05:22]} Rd3 {[%emt 0:06:02]} 34. Ra1 {[%emt 0:10:58]} Bd5 {[%emt 0:00:25]} 35. Ng3 {[%emt 0:05:27]} Rxg3+ {[%emt 0:01:10]} 36. fxg3 {[%emt 0:00:37]} Qb2 {[%emt 0:00:20]} 37. gxf7+ {[%emt 0:00:08]} Rxf7 {[%emt 0:00:30]} 38. Qd8+ {[%emt 0:03:03]} Kh7 {[%emt 0:00:13]} 39. Qh4+ {[%emt 0:00:04]} Kg8 {[%emt 0:00:13]} 40. Qd8+ {[%emt 0:00:04]} Kh7 {[%emt 0:00:05]} 41. Qh4+ {[%emt 0:00:05]} Kg8 {[%emt 0:00:04]} 1/2-1/2

[Event "Chinese Chess League 2019"]
[Site "Shen Yang"]
[Date "2019.11.23"]
[Round "18.30"]
[White "Ju, Wenjun"]
[Black "Xiao, Yiyi"]
[Result "1-0"]
[ECO "E04"]
[WhiteElo "2586"]
[BlackElo "2316"]
[Annotator "ChessBase"]
[PlyCount "85"]
[EventDate "2019.04.09"]
[EventType "team-tourn"]
[EventCountry "CHN"]
[SourceTitle "playchess.com"]
[Source "ChessBase"]
[SourceQuality "1"]
[TimeControl "5400+30"]

1. d4 {[%emt 0:00:00]} Nf6 {[%emt 0:00:00]} 2. c4 {[%emt 0:00:00]} e6 {[%emt 0:00:00]} 3. g3 {[%emt 0:00:20]} d5 {[%emt 0:00:00]} 4. Bg2 {[%emt 0:00:07]} dxc4 {[%emt 0:01:12]} 5. Nf3 {[%emt 0:00:26]} Bb4+ {[%emt 0:00:37]} 6. Bd2 {[%emt 0:00:26]} a5 {[%emt 0:00:31]} 7. a3 {[%emt 0:05:07]} Bxd2+ {[%emt 0:00:22]} 8. Nbxd2 {[%emt 0:00:04]} b5 {[%emt 0:02:02]} 9. b3 {[%emt 0:00:05]} cxb3 {[%emt 0:05:34]} 10. Qxb3 {[%emt 0:00:03]} c6 {[%emt 0:01:23]} 11. O-O {[%emt 0:00:05]} O-O {[%emt 0:01:49]} 12. Rfc1 {[%emt 0:00:38]} Ba6 {[%emt 0:07:50]} 13. e3 {[%emt 0:04:45]} Qb6 {[%emt 0:22:15]} 14. Nc4 {[%emt 0:08:59]} Qc7 {[%emt 0:02:52]} 15. Nce5 {[%emt 0:02:10]} Qd6 {[%emt 0:00:09]} 16. Nd2 {[%emt 0:11:04]} Rc8 {[%emt 0:06:35]} 17. Qc2 {[%emt 0:02:55]} Nbd7 {[%emt 0:04:45]} 18. f4 {[%emt 0:01:52]} Ra7 {[%emt 0:11:13]} 19. Nb3 {[%emt 0:04:13]} Rac7 {[%emt 0:03:36]} 20. Nd3 {[%emt 0:11:08]} a4 {[%emt 0:08:19]} 21. Nbc5 {[%emt 0:00:13]} Nxc5 {[%emt 0:00:09]} 22. Nxc5 {[%emt 0:02:58]} Ra7 {[%emt 0:02:01]} 23. Qd2 {[%emt 0:02:11]} Nd7 {[%emt 0:01:24]} 24. Ra2 {[%emt 0:00:59]} Nxc5 {[%emt 0:03:49]} 25. Rxc5 {[%emt 0:00:32]} Rac7 {[%emt 0:00:34]} 26. Rac2 {[%emt 0:00:13]} g6 {[%emt 0:03:43]} 27. g4 {[%emt 0:01:07]} Qd7 {[%emt 0:01:42]} 28. g5 {[%emt 0:03:19]} h6 {[%emt 0:02:41]} 29. gxh6 {[%emt 0:03:37]} Kh7 {[%emt 0:01:25]} 30. Bf3 {[%emt 0:03:48]} Kxh6 {[%emt 0:01:34]} 31. Qg2 {[%emt 0:02:04]} Kg7 {[%emt 0:00:49]} 32. h4 {[%emt 0:03:54]} Qe7 {[%emt 0:00:01]} 33. Qg3 {[%emt 0:00:05]} Rh8 {[%emt 0:02:44]} 34. h5 {[%emt 0:00:14]} Kf8 {[%emt 0:01:06]} 35. Rg2 {[%emt 0:05:43]} Qf6 {[%emt 0:01:00]} 36. f5 {[%emt 0:01:04]} Rc8 {[%emt 0:00:22]} 37. fxg6 {[%emt 0:00:44]} fxg6 {[%emt 0:00:10]} 38. Bxc6 {[%emt 0:03:18]} Ke7 {[%emt 0:01:08]} 39. Rf2 {[%emt 0:00:08]} Qg7 {[%emt 0:00:15]} 40. Bg2 {[%emt 0:06:21]} Kd7 {[%emt 0:01:38]} 41. hxg6 {[%emt 0:00:23]} Rhf8 {[%emt 0:00:16]} 42. Rxc8 {[%emt 0:02:41]} Kxc8 {[%emt 0:00:11]} 43. Rc2+ {[%emt 0:01:05]} 1-0

[Event "Chinese Chess League 2019"]
[Site "Shen Yang"]
[Date "2019.12.05"]
[Round "20.10"]
[White "Zhu, Jiner"]
[Black "Guo, Qi"]
[Result "1/2-1/2"]
[ECO "C54"]
[WhiteElo "2468"]
[BlackElo "2403"]
[Annotator "RC"]
[PlyCount "63"]
[EventDate "2019.04.09"]
[EventType "team-tourn"]
[EventCountry "CHN"]
[SourceTitle "playchess.com"]
[Source "ChessBase"]
[SourceQuality "1"]
[TimeControl "5400+30"]

1. e4 {[%emt 0:00:00]} e5 {[%emt 0:00:00]} 2. Nf3 {[%emt 0:00:00]} Nc6 {[%emt 0:00:00]} 3. Bc4 {[%emt 0:00:00]} Bc5 {[%emt 0:00:10]} 4. O-O {[%emt 0:00:00]} Nf6 {[%emt 0:00:42]} 5. d3 {[%emt 0:00:03]} a6 {[%emt 0:01:42]} 6. Bb3 {[%emt 0:00:37]} d6 {[%emt 0:00:38]} 7. c3 {[%emt 0:00:09]} Ba7 {[%emt 0:00:55]} 8. Nbd2 {[%emt 0:00:20]} O-O {[%emt 0:00:15]} 9. h3 {[%emt 0:00:11]} h6 {[%emt 0:01:03]} 10. Re1 {[%emt 0:00:08]} Re8 {[%emt 0:02:26]} 11. Nf1 {[%emt 0:00:08]} Be6 {[%emt 0:00:18]} 12. Bc2 {[%emt 0:00:09]} d5 {[%emt 0:00:32]} 13. exd5 {[%emt 0:00:21]} Nxd5 {[%emt 0:03:39]} 14. Ng3 {[%emt 0:00:23]} Qd6 {[%emt 0:01:11]} 15. Qe2 {[%emt 0:04:08]} f5 {[%emt 0:00:37]} 16. Nh4 {[%emt 0:16:13]} Qf8 {[%emt 0:01:12]} 17. d4 {[%emt 0:07:29]} exd4 {[%emt 0:00:17]} 18. Qf3 {[%emt 0:00:07]} Rad8 {[%emt 0:00:07]} 19. Nhxf5 {[%emt 0:05:44]} dxc3 {[%emt 0:02:56]} 20. bxc3 {[%emt 0:07:32]} Bxf5 {[%emt 0:03:36]} 21. Rxe8 {[%emt 0:00:11]} Qxe8 {[%emt 0:06:13]} 22. Qxf5 {[%emt 0:00:48]} Qe1+ {[%emt 0:01:51]} 23. Kh2 {[%emt 0:00:07]} Bxf2 {[%emt 0:00:20]} 24. Qh7+ {[%emt 0:01:02]} Kf7 {[%emt 0:00:06]} 25. Qg6+ {[%emt 0:00:48]} Kg8 {[%emt 0:00:06]} 26. Qh7+ {[%emt 0:00:40]} Kf7 {[%emt 0:00:04]} 27. Bg6+ {[%emt 0:04:59]} Ke6 {[%emt 0:00:07]} 28. Bf5+ {[%emt 0:01:11]} Kf7 {[%emt 0:00:05]} 29. Qg6+ {[%emt 0:00:12]} Kg8 {[%emt 0:00:05]} 30. Qh7+ {[%emt 0:06:50]} Kf7 {[%emt 0:00:05]} 31. Bg6+ {[%emt 0:01:37]} Ke6 {[%emt 0:00:09]} 32. Bf5+ {[%emt 0:04:43]} 1/2-1/2

[Event "Chinese Chess League 2019"]
[Site "Shen Yang"]
[Date "2019.12.05"]
[Round "20.14"]
[White "Wang, Yu A."]
[Black "Li, Xueyi"]
[Result "1/2-1/2"]
[ECO "B11"]
[WhiteElo "2275"]
[BlackElo "2270"]
[Annotator "NA RC"]
[PlyCount "100"]
[EventDate "2019.04.09"]
[EventType "team-tourn"]
[EventCountry "CHN"]
[SourceTitle "playchess.com"]
[Source "ChessBase"]
[SourceQuality "1"]
[TimeControl "5400+30"]

1. e4 {[%emt 0:00:00]} c6 {[%emt 0:00:00]} 2. Nc3 {[%emt 0:00:00]} d5 {[%emt 0:00:00]} 3. Nf3 {[%emt 0:00:00]} Bg4 {[%emt 0:00:44]} 4. h3 {[%emt 0:00:00]} Bxf3 {[%emt 0:00:06]} 5. Qxf3 {[%emt 0:00:00]} e6 {[%emt 0:00:30]} 6. d4 {[%emt 0:00:18]} dxe4 {[%emt 0:00:52]} 7. Qxe4 {[%emt 0:00:09] B11: Caro-Kann: Two Knights Variation} Nf6 {[%emt 0:00:15]} 8. Qd3 {[%emt 0:00:07]} Nbd7 {[%emt 0:02:32]} 9. g3 {[%emt 0:05:40]} Be7 {[%emt 0:03:30]} 10. Bg2 {[%emt 0:00:46]} O-O {[%emt 0:00:40]} 11. O-O {[%emt 0:00:41]} Qb6 {[%emt 0:00:46]} 12. Na4 $146 {[%emt 0:08:24]} ({Predecessor:} 12. b3 Rad8 13. Bb2 Qa5 14. Rfd1 Ba3 15. Bxa3 Qxa3 {1-0 (61) Bacrot,E (2697)-Bologan,V (2607) Berlin 2015}) 12... Qa5 {[%emt 0:01:03]} 13. b3 {[%emt 0:00:32]} Rad8 {[%emt 0:00:30]} 14. Bb2 {[%emt 0:05:11]} Qc7 {[%emt 0:18:00]} 15. Rad1 {[%emt 0:04:05]} b5 {[%emt 0:11:26]} 16. Nc3 {[%emt 0:00:25]} b4 {[%emt 0:00:05]} 17. Ne4 {[%emt 0:09:38]} c5 {[%emt 0:00:52]} 18. dxc5 {[%emt 0:14:37]} Nxc5 {[%emt 0:00:57]} 19. Qe2 {[%emt 0:00:36]} Ncxe4 {[%emt 0:01:03]} 20. Bxe4 {[%emt 0:00:05]} Bc5 {[%emt 0:08:22]} 21. Kg2 {[%emt 0:05:20]} Nxe4 {[%emt 0:06:11]} 22. Qxe4 {[%emt 0:00:03]} Qe7 {[%emt 0:00:44]} 23. Rfe1 {[%emt 0:07:44]} Bb6 $11 {[%emt 0:05:40]} 24. Qg4 {[%emt 0:11:39]} f5 {[%emt 0:06:19]} 25. Qc4 {[%emt 0:01:13]} Rxd1 {[%emt 0:05:39]} 26. Rxd1 {[%emt 0:00:07]} f4 {[%emt 0:09:14]} 27. gxf4 {[%emt 0:03:05]} Qb7+ {[%emt 0:04:02]} 28. Kg3 {[%emt 0:05:40]} Qf7 {[%emt 0:00:34]} 29. Qe4 {[%emt 0:00:21]} Bc7 {[%emt 0:01:31]} 30. Be5 {[%emt 0:06:17]} Bxe5 {[%emt 0:02:33]} 31. Qxe5 {[%emt 0:00:02]} Qg6+ {[%emt 0:01:09]} 32. Kf3 {[%emt 0:00:05]} Qxc2 {[%emt 0:01:20]} 33. Qxe6+ {[%emt 0:00:14]} Kh8 {[%emt 0:00:06]} 34. Rd7 {[%emt 0:01:03]} h6 {[%emt 0:02:44]} 35. Qe7 {[%emt 0:05:44]} Qc3+ {[%emt 0:01:17]} 36. Kg4 {[%emt 0:02:03]} Rc8 {[%emt 0:01:16]} 37. Rd8+ {[%emt 0:02:34]} Rxd8 {[%emt 0:00:05]} 38. Qxd8+ {[%emt 0:00:02]} Kh7 {[%emt 0:00:05]} 39. Qd7 {[%emt 0:02:55]} a6 {[%emt 0:02:12]} 40. Qf5+ {[%emt 0:00:39]} Kh8 {[%emt 0:00:07]} 41. Qe4 {[%emt 0:01:14]} Qd2 {[%emt 0:00:33]} 42. Qa8+ {[%emt 0:00:48]} Kh7 {[%emt 0:00:15]} 43. Qe4+ {[%emt 0:00:24]} Kh8 {[%emt 0:00:04]} 44. Qa8+ {[%emt 0:00:07]} Kh7 {[%emt 0:00:05]} 45. Qxa6 {[%emt 0:00:22]} Qxf2 {[%emt 0:00:31]} 46. Qd3+ {[%emt 0:00:03]} g6 {[%emt 0:01:06]} 47. Qd7+ {[%emt 0:01:22]} Kg8 {[%emt 0:00:34]} 48. Qe8+ {[%emt 0:00:30]} Kg7 {[%emt 0:00:05]} 49. Qe7+ {[%emt 0:00:21]} Kg8 {[%emt 0:00:05]} 50. Qe8+ {[%emt 0:00:22]} Kg7 {[%emt 0:00:06]} 1/2-1/2

[Event "Chinese Chess League 2019"]
[Site "Shen Yang"]
[Date "2019.12.05"]
[Round "20.20"]
[White "Zhou, Zirun"]
[Black "Huang, Qian"]
[Result "1/2-1/2"]
[ECO "D45"]
[WhiteElo "2121"]
[BlackElo "2427"]
[Annotator "RC"]
[PlyCount "127"]
[EventDate "2019.04.09"]
[EventType "team-tourn"]
[EventCountry "CHN"]
[SourceTitle "playchess.com"]
[Source "ChessBase"]
[SourceQuality "1"]
[TimeControl "5400+30"]

1. d4 {[%emt 0:00:00]} d5 {[%emt 0:04:12]} 2. c4 {[%emt 0:00:00]} c6 {[%emt 0:00:04]} 3. Nc3 {[%emt 0:00:05]} Nf6 {[%emt 0:00:07]} 4. Nf3 {[%emt 0:00:08]} e6 {[%emt 0:00:18]} 5. e3 {[%emt 0:04:18]} a6 {[%emt 0:00:23]} 6. c5 {[%emt 0:10:53]} Nbd7 {[%emt 0:00:56]} 7. Bd2 {[%emt 0:02:09]} b6 {[%emt 0:04:01]} 8. cxb6 {[%emt 0:02:55]} Qxb6 {[%emt 0:00:32]} 9. Na4 {[%emt 0:00:42]} Qa7 {[%emt 0:02:37]} 10. Bd3 {[%emt 0:03:31]} a5 {[%emt 0:03:23]} 11. Rc1 {[%emt 0:04:37]} Ba6 {[%emt 0:12:20]} 12. Bxa6 {[%emt 0:04:09]} Qxa6 {[%emt 0:00:09]} 13. Qe2 {[%emt 0:00:17]} Qb7 {[%emt 0:17:35]} 14. O-O {[%emt 0:02:50]} Ne4 {[%emt 0:01:46]} 15. Rc2 {[%emt 0:04:31]} Nxd2 {[%emt 0:25:02]} 16. Nxd2 {[%emt 0:00:40]} Qb4 {[%emt 0:00:27]} 17. b3 {[%emt 0:01:04]} Qb7 {[%emt 0:03:28]} 18. Rfc1 {[%emt 0:01:19]} Ba3 {[%emt 0:01:11]} 19. Rd1 {[%emt 0:00:23]} O-O {[%emt 0:00:24]} 20. f4 {[%emt 0:04:05]} Rfc8 {[%emt 0:03:28]} 21. Nb1 {[%emt 0:02:23]} Be7 {[%emt 0:00:47]} 22. Rdc1 {[%emt 0:01:24]} Rc7 {[%emt 0:01:05]} 23. Kh1 {[%emt 0:09:33]} Rac8 {[%emt 0:00:22]} 24. e4 {[%emt 0:00:36]} Nf6 {[%emt 0:04:41]} 25. Nd2 {[%emt 0:00:32]} Ba3 {[%emt 0:01:45]} 26. Nc5 {[%emt 0:00:18]} Bxc5 {[%emt 0:03:59]} 27. Rxc5 {[%emt 0:00:14]} Qb4 {[%emt 0:00:17]} 28. Qd3 {[%emt 0:03:42]} a4 {[%emt 0:02:36]} 29. exd5 {[%emt 0:04:29]} exd5 {[%emt 0:00:12]} 30. Qc3 {[%emt 0:00:50]} Qxc3 {[%emt 0:00:50]} 31. R5xc3 {[%emt 0:00:10]} axb3 {[%emt 0:00:07]} 32. axb3 {[%emt 0:00:09]} Kf8 {[%emt 0:00:28]} 33. h3 {[%emt 0:05:48]} Ke7 {[%emt 0:00:28]} 34. Kg1 {[%emt 0:02:44]} Kd6 {[%emt 0:00:11]} 35. Kf2 {[%emt 0:00:06]} Re8 {[%emt 0:02:39]} 36. Re3 {[%emt 0:04:39]} Rb8 {[%emt 0:00:46]} 37. Rec3 {[%emt 0:00:41]} Re8 {[%emt 0:00:53]} 38. Re3 {[%emt 0:00:11]} Ra8 {[%emt 0:02:51]} 39. Rec3 {[%emt 0:00:57]} Rb8 {[%emt 0:00:55]} 40. g4 {[%emt 0:03:43]} Re8 {[%emt 0:00:09]} 41. Re3 {[%emt 0:00:31]} Rxe3 {[%emt 0:00:15]} 42. Kxe3 {[%emt 0:00:04]} Ra7 {[%emt 0:01:11]} 43. Kd3 {[%emt 0:00:33]} Nd7 {[%emt 0:00:08]} 44. Re1 {[%emt 0:01:17]} c5 {[%emt 0:00:28]} 45. Re8 {[%emt 0:00:50]} cxd4 {[%emt 0:00:16]} 46. Rh8 {[%emt 0:01:37]} h6 {[%emt 0:00:20]} 47. Kxd4 {[%emt 0:00:43]} Ra2 {[%emt 0:01:32]} 48. Nf3 {[%emt 0:00:41]} Rb2 {[%emt 0:00:39]} 49. Ne5 {[%emt 0:00:41]} Nxe5 {[%emt 0:00:37]} 50. fxe5+ {[%emt 0:00:06]} Ke7 {[%emt 0:00:32]} 51. Kxd5 {[%emt 0:02:02]} Rxb3 {[%emt 0:00:05]} 52. h4 {[%emt 0:00:14]} f6 {[%emt 0:00:59]} 53. exf6+ {[%emt 0:02:21]} Kxf6 {[%emt 0:00:01]} 54. Rf8+ {[%emt 0:00:08]} Kg6 {[%emt 0:00:12]} 55. Rf5 {[%emt 0:00:09]} Rb5+ {[%emt 0:00:33]} 56. Ke6 {[%emt 0:00:16]} Rb4 {[%emt 0:00:16]} 57. h5+ {[%emt 0:00:14]} Kh7 {[%emt 0:00:04]} 58. g5 {[%emt 0:00:24]} hxg5 {[%emt 0:00:03]} 59. Rxg5 {[%emt 0:00:04]} Rb6+ {[%emt 0:00:39]} 60. Kf5 {[%emt 0:01:07]} Kh6 {[%emt 0:01:05]} 61. Rg6+ {[%emt 0:00:23]} Rxg6 {[%emt 0:00:06]} 62. hxg6 {[%emt 0:00:04]} Kh5 {[%emt 0:00:03]} 63. Kf4 {[%emt 0:00:04]} Kxg6 {[%emt 0:01:45]} 64. Ke4 {[%emt 0:00:07]} 1/2-1/2

[Event "Chinese Chess League 2019"]
[Site "Shen Yang"]
[Date "2019.12.05"]
[Round "20.30"]
[White "Xiao, Yiyi"]
[Black "Girya, Olga"]
[Result "1-0"]
[ECO "E05"]
[WhiteElo "2316"]
[BlackElo "2476"]
[Annotator "ChessBase"]
[PlyCount "151"]
[EventDate "2019.04.09"]
[EventType "team-tourn"]
[EventCountry "CHN"]
[SourceTitle "playchess.com"]
[Source "ChessBase"]
[SourceQuality "1"]
[TimeControl "5400+30"]

1. d4 {[%emt 0:00:00]} Nf6 {[%emt 0:00:00]} 2. c4 {[%emt 0:00:00]} e6 {[%emt 0:00:00]} 3. g3 {[%emt 0:00:00]} d5 {[%emt 0:00:00]} 4. Bg2 {[%emt 0:00:00]} Be7 {[%emt 0:00:00]} 5. Nf3 {[%emt 0:00:01]} O-O {[%emt 0:00:02]} 6. O-O {[%emt 0:00:04]} dxc4 {[%emt 0:00:14]} 7. Qc2 {[%emt 0:00:14]} a6 {[%emt 0:00:07]} 8. a4 {[%emt 0:00:22]} Bd7 {[%emt 0:00:21]} 9. Rd1 {[%emt 0:03:13]} Bc6 {[%emt 0:01:00]} 10. Nc3 {[%emt 0:00:11]} Bxf3 {[%emt 0:07:05]} 11. Bxf3 {[%emt 0:00:03]} Nc6 {[%emt 0:00:51]} 12. Bxc6 {[%emt 0:01:06]} bxc6 {[%emt 0:00:04]} 13. Bg5 {[%emt 0:00:52]} Nd5 {[%emt 0:20:05]} 14. Bxe7 {[%emt 0:02:30]} Nxe7 {[%emt 0:00:04]} 15. Ne4 {[%emt 0:20:00]} a5 {[%emt 0:05:58]} 16. Qxc4 {[%emt 0:01:40]} Qd5 {[%emt 0:00:07]} 17. Qxd5 {[%emt 0:06:17]} cxd5 {[%emt 0:00:51]} 18. Nc5 {[%emt 0:00:06]} Rfb8 {[%emt 0:00:18]} 19. b3 {[%emt 0:01:44]} h5 {[%emt 0:09:02]} 20. Rac1 {[%emt 0:06:27]} Nf5 {[%emt 0:07:33]} 21. Rd3 {[%emt 0:05:34]} Rb4 {[%emt 0:06:41]} 22. e3 {[%emt 0:00:08]} Rab8 {[%emt 0:05:37]} 23. Rdc3 {[%emt 0:04:39]} R8b6 {[%emt 0:01:43]} 24. Nd7 {[%emt 0:02:05]} Rb7 {[%emt 0:00:50]} 25. Nc5 {[%emt 0:12:43]} R7b6 {[%emt 0:00:22]} 26. h4 {[%emt 0:02:48]} Nd6 {[%emt 0:04:12]} 27. Nd7 {[%emt 0:06:47]} Rb7 {[%emt 0:00:07]} 28. Nc5 {[%emt 0:00:41]} R7b6 {[%emt 0:00:03]} 29. Kg2 {[%emt 0:05:10]} Ne8 {[%emt 0:02:03]} 30. Kf3 {[%emt 0:01:29]} Nf6 {[%emt 0:07:44]} 31. Ke2 {[%emt 0:07:22]} Ne4 {[%emt 0:12:16]} 32. Nxe4 {[%emt 0:00:49]} dxe4 {[%emt 0:00:04]} 33. Rxc7 {[%emt 0:00:10]} Rxb3 {[%emt 0:00:02]} 34. Rc8+ {[%emt 0:05:42]} Kh7 {[%emt 0:00:01]} 35. R8c5 {[%emt 0:00:17]} Rb2+ {[%emt 0:07:10]} 36. Kf1 {[%emt 0:00:17]} Ra2 {[%emt 0:02:07]} 37. Rxh5+ {[%emt 0:00:07]} Kg6 {[%emt 0:00:06]} 38. Rg5+ {[%emt 0:00:53]} Kf6 {[%emt 0:02:01]} 39. Rb5 {[%emt 0:00:13]} Rxb5 {[%emt 0:00:22]} 40. axb5 {[%emt 0:00:03]} Rb2 {[%emt 0:00:04]} 41. Rc5 {[%emt 0:00:29]} a4 {[%emt 0:00:50]} 42. Rc4 {[%emt 0:00:21]} a3 {[%emt 0:00:28]} 43. Ra4 {[%emt 0:00:02]} a2 {[%emt 0:00:10]} 44. Kg2 {[%emt 0:00:03]} Ke7 {[%emt 0:02:26]} 45. g4 {[%emt 0:03:01]} Kd6 {[%emt 0:00:13]} 46. Kg3 {[%emt 0:00:52]} Kd5 {[%emt 0:00:35]} 47. h5 {[%emt 0:01:11]} f6 {[%emt 0:00:07]} 48. Ra7 {[%emt 0:01:47]} Re2 {[%emt 0:00:57]} 49. Ra5 {[%emt 0:00:50]} Kd6 {[%emt 0:00:36]} 50. Ra6+ {[%emt 0:00:56]} Kd5 {[%emt 0:00:21]} 51. Ra4 {[%emt 0:00:09]} Kd6 {[%emt 0:00:25]} 52. Ra6+ {[%emt 0:00:41]} Kd5 {[%emt 0:00:03]} 53. Ra5 {[%emt 0:00:04]} Kd6 {[%emt 0:01:16]} 54. Kf4 {[%emt 0:02:09]} Rxf2+ {[%emt 0:00:23]} 55. Kxe4 {[%emt 0:00:02]} Rg2 {[%emt 0:00:39]} 56. Ra6+ {[%emt 0:00:15]} Kc7 {[%emt 0:00:27]} 57. Kf3 {[%emt 0:00:30]} Rb2 {[%emt 0:00:24]} 58. e4 {[%emt 0:00:20]} Kb7 {[%emt 0:00:43]} 59. e5 {[%emt 0:00:27]} fxe5 {[%emt 0:00:33]} 60. dxe5 {[%emt 0:00:01]} Rxb5 {[%emt 0:00:31]} 61. Rxa2 {[%emt 0:00:04]} Rxe5 {[%emt 0:00:03]} 62. Re2 {[%emt 0:00:45]} Rd5 {[%emt 0:00:59]} 63. Rxe6 {[%emt 0:00:03]} Rd7 {[%emt 0:00:25]} 64. Kf4 {[%emt 0:00:20]} Kc7 {[%emt 0:00:11]} 65. Kf5 {[%emt 0:00:20]} Kd8 {[%emt 0:00:48]} 66. g5 {[%emt 0:00:59]} Rd1 {[%emt 0:00:29]} 67. Kg6 {[%emt 0:00:13]} Rg1 {[%emt 0:00:32]} 68. Ra6 {[%emt 0:00:16]} Ke8 {[%emt 0:00:21]} 69. Ra8+ {[%emt 0:00:12]} Ke7 {[%emt 0:00:03]} 70. Ra7+ {[%emt 0:00:04]} Kf8 {[%emt 0:00:43]} 71. Rf7+ {[%emt 0:00:06]} Ke8 {[%emt 0:00:35]} 72. Rxg7 {[%emt 0:00:07]} Ra1 {[%emt 0:00:46]} 73. Rf7 {[%emt 0:00:38]} Ra5 {[%emt 0:00:27]} 74. Rf5 {[%emt 0:00:24]} Ra6+ {[%emt 0:00:33]} 75. Rf6 {[%emt 0:00:02]} Ra5 {[%emt 0:00:21]} 76. h6 {[%emt 0:00:11]} 1-0